fUST/lending_fUST_20250916
["ID","MTS","AMOUNT","RATE_DAILY","PERIOD"]
[385755711,1758018635511,-153.894569,0.00021761,2]
[385755712,1758018635521,-151.0,0.00021761,2]
[385755713,1758018635530,-151.0,0.00021761,2]
[385755714,1758018635539,-151.0,0.00021761,2]
[385755715,1758018635548,-151.0,0.00021764,2]
[385755716,1758018635557,-151.0,0.00021764,2]
[385755717,1758018635565,-151.746153,0.00021764,2]
[385755718,1758018635574,-151.0,0.00021764,2]
[385755719,1758018635583,-151.0,0.00021764,2]
[385755720,1758018635592,-151.0,0.00021764,2]
[385755721,1758018635602,-151.876733,0.00021764,2]
[385755722,1758018635611,-151.0,0.00021764,2]
[385755723,1758018635620,-151.0,0.00021764,2]
[385755724,1758018635630,-151.0,0.00021764,2]
[385755725,1758018635639,-151.0,0.00021764,2]
[385755726,1758018635647,-151.0,0.00021764,2]
[385755727,1758018635656,-152.630369,0.00021764,2]
[385755728,1758018635665,-151.0,0.00021764,2]
[385755729,1758018635674,-840.0,0.00021764,2]
[385755730,1758018635683,-230.61141933,0.00021764,2]
[385755731,1758018635692,-151.0,0.00021764,2]
[385755732,1758018635702,-151.0,0.00021764,2]
[385755733,1758018635712,-153.266195,0.00021764,2]
[385755734,1758018635721,-151.0,0.00021764,2]
[385755735,1758018635730,-151.0,0.00021764,2]
[385755736,1758018635739,-151.0,0.00021764,2]
[385755737,1758018635750,-151.0,0.00021764,2]
[385755738,1758018635762,-151.0,0.00021764,2]
[385755739,1758018635771,-151.0,0.00021764,2]
[385755740,1758018635780,-157.0,0.00021764,2]
[385755741,1758018635791,-151.0,0.00021764,2]
[385755742,1758018635801,-151.0,0.00021764,2]
[385755743,1758018635810,-151.0,0.00021764,2]
[385755744,1758018635820,-151.0,0.00021764,2]
[385755745,1758018635831,-151.0,0.00021764,2]
[385755746,1758018635842,-151.0,0.00021764,2]
[385755747,1758018635851,-446.878969,0.00021764,2]
[385755748,1758018635860,-151.0,0.00021764,2]
[385755749,1758018635870,-446.878969,0.00021764,2]
[385755750,1758018635879,-151.0,0.00021764,2]
[385755751,1758018635888,-446.878969,0.00021764,2]
[385755752,1758018635897,-446.878969,0.00021764,2]
[385755753,1758018635906,-151.0,0.00021764,2]
[385755754,1758018635916,-151.0,0.00021764,2]
[385755755,1758018635925,-151.0,0.00021764,2]
[385755756,1758018635934,-151.0,0.00021764,2]
[385755757,1758018635944,-170.137116,0.00021764,2]
[385755758,1758018635953,-170.137116,0.00021764,2]
[385755759,1758018635962,-170.137116,0.00021764,2]
[385755760,1758018635971,-170.137116,0.00021764,2]
[385755761,1758018635980,-181.98644,0.00021764,2]
[385755762,1758018635991,-151.0,0.00021765,2]
[385755763,1758018636000,-151.0,0.00021765,2]
[385755764,1758018636011,-151.0,0.00021765,2]
[385755765,1758018636020,-151.612965,0.00021765,2]
[385755766,1758018636030,-151.0,0.00021765,2]
[385755767,1758018636039,-151.897757,0.00021765,2]
[385755768,1758018636049,-151.0,0.00021765,2]
[385755769,1758018636058,-151.0,0.00021765,2]
[385755770,1758018636067,-151.0,0.00021765,2]
[385755771,1758018636078,-151.0,0.00021765,2]
[385755772,1758018636088,-151.0,0.00021765,2]
[385755773,1758018636097,-157.0,0.00021765,2]
[385755774,1758018636106,-151.0,0.00021765,2]
[385755775,1758018636115,-151.0,0.00021765,2]
[385755776,1758018636125,-151.0,0.00021765,2]
[385755777,1758018636134,-273.895489,0.00021765,2]
[385755778,1758018636143,-151.0,0.00021765,2]
[385755779,1758018636152,-151.0,0.00021765,2]
[385755780,1758018636161,-151.0,0.00021765,2]
[385755781,1758018636170,-151.0,0.00021765,2]
[385755782,1758018636179,-151.0,0.00021765,2]
[385755783,1758018636188,-151.0,0.00021765,2]
[385755784,1758018636197,-151.0,0.00021765,2]
[385755785,1758018636207,-151.0,0.00021765,2]
[385755786,1758018636215,-151.0,0.00021765,2]
[385755787,1758018636225,-151.0,0.00021765,2]
[385755788,1758018636234,-151.0,0.00021765,2]
[385755789,1758018636243,-151.0,0.00021765,2]
[385755790,1758018636253,-151.0,0.00021765,2]
[385755791,1758018636263,-177.773025,0.00021765,2]
[385755792,1758018636272,-177.773025,0.00021765,2]
[385755793,1758018636282,-177.773025,0.00021765,2]
[385755794,1758018636292,-177.773025,0.00021765,2]
[385755795,1758018636302,-151.0,0.00021765,2]
[385755796,1758018636311,-217.057378,0.00021765,2]
[385755797,1758018636320,-217.057378,0.00021765,2]
[385755798,1758018636330,-217.057378,0.00021765,2]
[385755799,1758018636339,-151.0,0.00021765,2]
[385755800,1758018636349,-217.057378,0.00021765,2]
[385755801,1758018636358,-151.0,0.00021765,2]
[385755802,1758018636367,-151.0,0.00021765,2]
[385755803,1758018636376,-151.0,0.00021765,2]
[385755804,1758018636386,-223.556065,0.00021765,2]
[385755805,1758018636395,-151.0,0.00021765,2]
[385755806,1758018636405,-162.086011,0.00021765,2]
[385755807,1758018636414,-151.0,0.00021765,2]
[385755808,1758018636423,-151.0,0.00021765,2]
[385755809,1758018636432,-151.0,0.00021765,2]
[385755810,1758018636441,-249.321416,0.00021765,2]
[385755811,1758018636450,-151.0,0.00021765,2]
[385755812,1758018636460,-151.0,0.00021765,2]
[385755813,1758018636469,-151.0,0.00021765,2]
[385755814,1758018636478,-202.442081,0.00021765,2]
[385755815,1758018636488,-446.878969,0.00021765,2]
[385755816,1758018636498,-446.878969,0.00021765,2]
[385755817,1758018636507,-151.0,0.00021765,2]
[385755818,1758018636517,-446.878969,0.00021765,2]
[385755819,1758018636526,-151.0,0.00021765,2]
[385755820,1758018636536,-446.878969,0.00021765,2]
[385755821,1758018636546,-151.0,0.00021765,2]
[385755822,1758018636555,-446.878969,0.00021765,2]
[385755823,1758018636565,-151.0,0.00021765,2]
[385755824,1758018636574,-446.878969,0.00021765,2]
[385755825,1758018636583,-446.878969,0.00021765,2]
[385755826,1758018636592,-446.878961,0.00021765,2]
[385755827,1758018636602,-151.0,0.00021765,2]
[385755828,1758018636611,-244.845689,0.00021765,2]
[385755829,1758018636620,-244.845689,0.00021765,2]
[385755830,1758018636631,-155.688121,0.00021765,2]
[385755831,1758018636642,-244.845689,0.00021765,2]
[385755832,1758018636652,-244.845689,0.00021765,2]
[385755833,1758018636662,-244.845689,0.00021765,2]
[385755834,1758018636671,-244.845689,0.00021765,2]
[385755835,1758018636681,-410.06029,0.00021765,2]
[385755836,1758018636692,-410.06029,0.00021765,2]
[385755837,1758018636702,-244.845689,0.00021765,2]
[385755838,1758018636712,-244.845693,0.00021765,2]
[385755839,1758018636722,-410.06029,0.00021765,2]
[385755840,1758018636733,-410.06029,0.00021765,2]
[385755841,1758018636743,-410.06029,0.00021765,2]
[385755842,1758018636754,-410.06029,0.00021765,2]
[385755843,1758018636766,-410.06029,0.00021765,2]
[385755844,1758018636777,-410.060293,0.00021765,2]
[385755845,1758018636787,-178.181862,0.00021765,2]
[385755846,1758018636797,-178.181862,0.00021765,2]
[385755847,1758018636806,-178.181862,0.00021765,2]
[385755848,1758018636815,-178.181862,0.00021765,2]
[385755849,1758018636825,-151.0,0.00021765,2]
[385755850,1758018636835,-178.181862,0.00021765,2]
[385755851,1758018636845,-151.0,0.00021765,2]
[385755852,1758018636855,-178.181862,0.00021765,2]
[385755853,1758018636864,-178.181862,0.00021765,2]
[385755854,1758018636874,-178.18187,0.00021765,2]
[385755855,1758018636883,-151.0,0.00021765,2]
[385755856,1758018636894,-151.0,0.00021765,2]
[385755857,1758018636903,-151.0,0.00021765,2]
[385755858,1758018636913,-151.0,0.00021765,2]
[385755859,1758018636922,-151.0,0.00021765,2]
[385755860,1758018636931,-151.0,0.00021765,2]
[385755861,1758018636943,-151.0,0.00021765,2]
[385755862,1758018636959,-151.0,0.00021765,2]
[385755863,1758018636968,-160.5204166,0.00021765,2]
[385755864,1758018636977,-151.0,0.00021765,2]
[385755865,1758018636987,-151.0,0.00021765,2]
[385755866,1758018636995,-327.353288,0.00021765,2]
[385755867,1758018637004,-327.353288,0.00021765,2]
[385755868,1758018637013,-327.353288,0.00021765,2]
[385755869,1758018637023,-327.353288,0.00021765,2]
[385755870,1758018637032,-327.353288,0.00021765,2]
[385755871,1758018637041,-327.353288,0.00021765,2]
[385755872,1758018637050,-327.353288,0.00021765,2]
[385755873,1758018637059,-327.353285,0.00021765,2]
[385755874,1758018637067,-151.0,0.00021765,2]
[385755875,1758018637077,-151.0,0.00021765,2]
[385755876,1758018637086,-151.0,0.00021765,2]
[385755877,1758018637095,-151.0,0.00021765,2]
[385755878,1758018637105,-151.985949,0.00021765,2]
[385755879,1758018637114,-151.0,0.00021765,2]
[385755880,1758018637123,-190.023749,0.00021765,2]
[385755881,1758018637218,-155.582891,0.00021765,2]
[385755882,1758018637227,-151.0,0.00021765,2]
[385755883,1758018637236,-151.0,0.00021765,2]
[385755884,1758018637245,-170.137116,0.00021765,2]
[385755885,1758018637255,-170.137116,0.00021765,2]
[385755886,1758018637264,-170.137116,0.00021765,2]
[385755887,1758018637274,-170.137116,0.00021765,2]
[385755888,1758018637283,-170.137116,0.00021765,2]
[385755889,1758018637292,-170.137116,0.00021765,2]
[385755890,1758018637302,-170.137116,0.00021765,2]
[385755891,1758018637311,-170.137116,0.00021765,2]
[385755892,1758018637320,-155.969556,0.00021765,2]
[385755893,1758018637330,-1000.0,0.00021765,2]
[385755894,1758018637339,-1000.0,0.00021765,2]
[385755895,1758018637348,-1000.0,0.00021765,2]
[385755896,1758018637357,-1000.0,0.00021765,2]
[385755897,1758018637366,-1000.0,0.00021765,2]
[385755898,1758018637375,-1000.0,0.00021765,2]
[385755899,1758018637384,-1000.0,0.00021765,2]
[385755900,1758018637393,-1000.0,0.00021765,2]
[385755901,1758018637403,-1000.0,0.00021765,2]
[385755902,1758018637412,-1000.0,0.00021765,2]
[385755903,1758018637421,-1000.0,0.00021765,2]
[385755904,1758018637430,-151.0,0.00021765,2]
[385755905,1758018637440,-1000.0,0.00021765,2]
[385755906,1758018637449,-1000.0,0.00021765,2]
[385755907,1758018637458,-151.0,0.00021765,2]
[385755908,1758018637468,-1000.0,0.00021765,2]
[385755909,1758018637477,-1000.0,0.00021765,2]
[385755910,1758018637487,-151.0,0.00021765,2]
[385755911,1758018637496,-1000.0,0.00021765,2]
[385755912,1758018637505,-1000.0,0.00021765,2]
[385755913,1758018637515,-1000.0,0.00021765,2]
[385755914,1758018637524,-151.0,0.00021765,2]
[385755915,1758018637533,-1000.0,0.00021765,2]
[385755916,1758018637543,-151.0,0.00021765,2]
[385755917,1758018637551,-1000.0,0.00021765,2]
[385755918,1758018637561,-151.0,0.00021765,2]
[385755919,1758018637570,-1000.0,0.00021765,2]
[385755920,1758018637579,-1000.0,0.00021765,2]
[385755921,1758018637588,-1000.0,0.00021765,2]
[385755922,1758018637598,-1000.0,0.00021765,2]
[385755923,1758018637607,-1000.0,0.00021765,2]
[385755924,1758018637616,-1000.0,0.00021765,2]
[385755925,1758018637625,-1000.0,0.00021765,2]
[385755926,1758018637634,-156.514,0.00021771,2]
[385755927,1758018637643,-491.66633928,0.00021772,2]
[385755928,1758018637652,-522.6342153,0.00021773,2]
[385755929,1758018637661,-500.0,0.00021773,2]
[385755930,1758018637671,-151.0,0.00021773,2]
[385755931,1758018637681,-189.895693,0.00021773,2]
[385755932,1758018637690,-151.0,0.00021773,2]
[385755933,1758018637700,-151.0,0.00021773,2]
[385755934,1758018637709,-151.873343,0.00021773,2]
[385755935,1758018637718,-151.0,0.00021773,2]
[385755936,1758018637727,-151.0,0.00021773,2]
[385755937,1758018637737,-151.0,0.00021773,2]
[385755938,1758018637749,-151.0,0.00021773,2]
[385755939,1758018637763,-154.738351,0.00021773,2]
[385755940,1758018637772,-151.0,0.00021773,2]
[385755941,1758018637781,-151.0,0.00021773,2]
[385755942,1758018637791,-179.994414,0.00021773,2]
[385755943,1758018637800,-170.137116,0.00021773,2]
[385755944,1758018637809,-170.137116,0.00021773,2]
[385755945,1758018637818,-170.137116,0.00021773,2]
[385755946,1758018637830,-170.137116,0.00021773,2]
[385755947,1758018637840,-714.67523914,0.00021797,2]
[385755948,1758018637849,-201.3160958,0.00021797,2]
[385755949,1758018637859,-204.55100787,0.00021797,2]
[385755950,1758018637869,-181.52632434,0.00021797,2]
[385755951,1758018637878,-364.11551342,0.00021798,2]
[385755952,1758018637888,-75073.44910847,0.00021798,2]
[385755953,1758018637898,-151.0,0.00021798,2]
[385755954,1758018637908,-151.0,0.00021798,2]
[385755955,1758018637918,-151.0,0.00021798,2]
[385755956,1758018637928,-206.376474,0.00021798,2]
[385755957,1758018637938,-151.0,0.00021798,2]
[385755958,1758018637948,-151.0,0.00021798,2]
[385755959,1758018637958,-500.0,0.00021798,2]
[385755961,1758018637967,-151.0,0.00021798,2]
[385755963,1758018637976,-151.0,0.00021798,2]
[385755964,1758018637985,-151.0,0.00021798,2]
[385755965,1758018637994,-151.0,0.00021798,2]
[385755966,1758018638003,-151.0,0.00021798,2]
[385755967,1758018638013,-151.0,0.00021798,2]
[385755968,1758018638022,-151.0,0.00021798,2]
[385755970,1758018638031,-151.0,0.00021798,2]
[385755971,1758018638040,-151.0,0.00021798,2]
[385755972,1758018638049,-151.0,0.00021798,2]
[385755973,1758018638059,-170.143815,0.00021798,2]
[385755974,1758018638067,-151.0,0.00021798,2]
[385755975,1758018638076,-151.0,0.00021798,2]
[385755976,1758018638087,-151.0,0.00021798,2]
[385755977,1758018638096,-151.0,0.00021798,2]
[385755978,1758018638105,-151.0,0.00021798,2]
[385755979,1758018638115,-151.0,0.00021798,2]
[385755980,1758018638124,-151.0,0.00021798,2]
[385755981,1758018638134,-180.819714,0.00021798,2]
[385755982,1758018638143,-153.91604,0.00021798,2]
[385755983,1758018638152,-151.0,0.00021798,2]
[385755984,1758018638160,-151.0,0.00021798,2]
[385755985,1758018638170,-151.0,0.00021798,2]
[385755987,1758018638179,-153.148483,0.00021798,2]
[385755989,1758018638188,-151.0,0.00021798,2]
[385755990,1758018638197,-151.0,0.00021798,2]
[385755991,1758018638206,-151.0,0.00021798,2]
[385755992,1758018638216,-151.0,0.00021798,2]
[385755993,1758018638225,-151.0,0.00021798,2]
[385755994,1758018638234,-153.311625,0.00021798,2]
[385755995,1758018638243,-151.0,0.00021798,2]
[385755996,1758018638252,-251.6631,0.00021798,2]
[385755997,1758018638262,-152.29114,0.00021798,2]
[385755998,1758018638271,-163.880225,0.00021798,2]
[385755999,1758018638280,-151.0,0.00021798,2]
[385756000,1758018638289,-151.0,0.00021798,2]
[385756001,1758018638298,-157.762011,0.00021798,2]
[385756002,1758018638307,-151.0,0.00021798,2]
[385756003,1758018638315,-151.0,0.00021798,2]
[385756004,1758018638324,-151.0,0.00021798,2]
[385756005,1758018638333,-151.0,0.00021798,2]
[385756006,1758018638344,-177.773025,0.00021798,2]
[385756007,1758018638354,-177.773025,0.00021798,2]
[385756008,1758018638365,-177.773025,0.00021798,2]
[385756009,1758018638375,-177.773025,0.00021798,2]
[385756010,1758018638385,-177.773025,0.00021798,2]
[385756011,1758018638395,-177.773025,0.00021798,2]
[385756012,1758018638406,-177.773025,0.00021798,2]
[385756013,1758018638416,-177.773017,0.00021798,2]
[385756014,1758018638425,-217.057378,0.00021798,2]
[385756015,1758018638434,-217.057378,0.00021798,2]
[385756016,1758018638443,-217.057378,0.00021798,2]
[385756017,1758018638452,-217.057378,0.00021798,2]
[385756018,1758018638461,-142.27486748,0.00021798,2]
[385756019,1758018639304,-151.0,0.00021753,2]
[385756020,1758018639314,-151.0,0.00021753,2]
[385756021,1758018639324,-431.81591508,0.00021764,2]
[385756022,1758018639333,-300.46408492,0.00021764,2]
[385756023,1758018639344,-740.99599427,0.00021764,2]
[385756024,1758018639353,-338.56505002,0.00021764,2]
[385756025,1758018639363,-624.00071834,0.00021764,2]
[385756026,1758018639374,-390.19957396,0.00021764,2]
[385756027,1758018639384,-27.25978689,0.00021764,2]
[385756028,1758018639393,-1041.46007919,0.00021764,2]
[385756029,1758018639402,-80.38013392,0.00021764,2]
[385756030,1758018639413,-961.07994527,0.00021764,2]
[385756031,1758018639422,-1041.46007919,0.00021764,2]
[385756032,1758018639431,-1041.46007919,0.00021764,2]
[385756033,1758018639441,-1041.46007919,0.00021764,2]
[385756034,1758018639450,-1041.46007919,0.00021764,2]
[385756035,1758018639459,-1041.46007919,0.00021764,2]
[385756036,1758018639468,-1041.46007919,0.00021764,2]
[385756037,1758018639477,-765.83014118,0.00021764,2]
[385756042,1758018640675,-275.62993801,0.00021764,2]
[385756043,1758018640684,-164.59033115,0.00021764,2]
[385756045,1758018640728,-876.86974804,0.00021764,2]
[385756047,1758018640738,-1041.46007919,0.00021764,2]
[385756049,1758018640748,-1041.46007919,0.00021764,2]
[385756051,1758018640761,-1041.46007919,0.00021764,2]
[385756053,1758018640770,-1041.46007919,0.00021764,2]
[385756055,1758018640780,-1041.46007919,0.00021764,2]
[385756057,1758018640789,-1041.46007919,0.00021764,2]
[385756059,1758018640799,-1041.46007919,0.00021764,2]
[385756061,1758018640808,-1041.46007919,0.00021764,2]
[385756063,1758018640817,-1000.0,0.00021765,2]
[385756065,1758018640827,-1000.0,0.00021765,2]
[385756067,1758018640837,-1000.0,0.00021765,2]
[385756069,1758018640846,-1000.0,0.00021765,2]
[385756071,1758018640855,-1000.0,0.00021765,2]
[385756073,1758018640864,-1000.0,0.00021765,2]
[385756075,1758018640874,-152.860069,0.00021765,2]
[385756077,1758018640884,-1000.0,0.00021765,2]
[385756079,1758018640893,-1000.0,0.00021765,2]
[385756080,1758018640902,-1000.0,0.00021765,2]
[385756083,1758018640912,-1000.0,0.00021765,2]
[385756085,1758018640921,-1000.0,0.00021765,2]
[385756087,1758018640931,-1000.0,0.00021765,2]
[385756089,1758018640940,-1000.0,0.00021765,2]
[385756091,1758018640950,-1000.0,0.00021765,2]
[385756093,1758018640959,-1000.0,0.00021765,2]
[385756094,1758018640969,-151.0,0.00021765,2]
[385756096,1758018640978,-1000.0,0.00021765,2]
[385756099,1758018640988,-1000.0,0.00021765,2]
[385756101,1758018640999,-1000.0,0.00021765,2]
[385756103,1758018641008,-1000.0,0.00021765,2]
[385756105,1758018641016,-1091.621858,0.00021765,2]
[385756107,1758018641026,-74.78251052,0.00021798,2]
[385756109,1758018641035,-217.057378,0.00021798,2]
[385756111,1758018641044,-151.0,0.00021798,2]
[385756113,1758018641053,-154.881776,0.00021798,2]
[385756114,1758018641063,-217.057378,0.00021798,2]
[385756116,1758018641072,-217.05737,0.00021798,2]
[385756118,1758018641081,-157.099397,0.00021798,2]
[385756120,1758018641092,-184.897604,0.00021798,2]
[385756122,1758018641102,-151.0,0.00021798,2]
[385756124,1758018641111,-151.0,0.00021798,2]
[385756126,1758018641120,-151.0,0.00021798,2]
[385756128,1758018641129,-249.777469,0.00021798,2]
[385756130,1758018641138,-1226.0,0.00021814,2]
[385756132,1758018641148,-2394.87,0.00021822,2]
[385756134,1758018641157,-155.361001,0.00021822,2]
[385756136,1758018641166,-156.148166,0.00021822,2]
[385756138,1758018641175,-151.917481,0.00021825,2]
[385756140,1758018641184,-151.0,0.00021825,2]
[385756142,1758018641193,-151.0,0.00021825,2]
[385756144,1758018641202,-151.0,0.00021825,2]
[385756146,1758018641211,-151.0,0.00021825,2]
[385756148,1758018641220,-152.231449,0.00021825,2]
[385756149,1758018641230,-151.0,0.00021825,2]
[385756151,1758018641239,-151.0,0.00021825,2]
[385756153,1758018641249,-152.728998,0.00021825,2]
[385756155,1758018641258,-276.50081055,0.00021859,2]
[385756157,1758018641270,-830.49918945,0.00021859,2]
[385756160,1758018641281,-160.0,0.00021872,2]
[385756162,1758018641291,-160.0,0.00021872,2]
[385756163,1758018641301,-160.0,0.00021872,2]
[385756165,1758018641311,-217.86301978,0.00021872,2]
[385756167,1758018641320,-160.0,0.00021872,2]
[385756169,1758018641330,-531.43424302,0.00021872,2]
[385756171,1758018641339,-233.29513139,0.00021872,2]
[385756173,1758018641354,-847.61663983,0.00021872,2]
[385756176,1758018641364,-491.66633928,0.00021878,2]
[385756177,1758018641375,-150.0,0.000219,2]
[385756179,1758018641384,-151.0,0.000219,4]
[385756181,1758018641394,-2610.3183431,0.00021903,2]
[385756183,1758018641404,-460.77305998,0.00021917,2]
[385756185,1758018641413,-628.16973162,0.00021917,2]
[385756187,1758018641422,-481.03277327,0.00021917,2]
[385756189,1758018641432,-515.92166182,0.00021917,2]
[385756191,1758018641451,-480.0,0.00021917,2]
[385756192,1758018641461,-480.0,0.00021917,2]
[385756193,1758018641471,-460.17809837,0.00021917,2]
[385756194,1758018641481,-235.1946242,0.00021917,2]
[385756195,1758018641491,-480.0,0.00021917,2]
[385756196,1758018641500,-480.0,0.00021917,2]
[385756197,1758018641509,-192.81884626,0.00021917,2]
[385756198,1758018641518,-480.68590506,0.00021917,2]
[385756199,1758018641528,-480.0,0.00021917,2]
[385756200,1758018641537,-480.0,0.00021917,2]
[385756201,1758018641547,-480.0,0.00021917,2]
[385756202,1758018641556,-484.20197022,0.00021917,2]
[385756203,1758018641566,-484.69942309,0.00021917,2]
[385756204,1758018641578,-480.0,0.00021917,2]
[385756205,1758018641588,-251.4830029,0.00021917,2]
[385756206,1758018641600,-606.43944849,0.00021917,2]
[385756207,1758018641610,-246.57708116,0.00021917,2]
[385756208,1758018641619,-485.5152354,0.00021917,2]
[385756209,1758018641629,-480.0,0.00021917,2]
[385756210,1758018641638,-480.0,0.00021917,2]
[385756211,1758018641647,-480.0,0.00021917,2]
[385756212,1758018641657,-488.79425177,0.00021917,2]
[385756213,1758018641666,-480.0,0.00021917,2]
[385756214,1758018641676,-480.0,0.00021917,2]
[385756215,1758018641686,-482.58769798,0.00021917,2]
[385756216,1758018641696,-481.96798145,0.00021917,2]
[385756217,1758018641705,-575.14382805,0.00021917,2]
[385756218,1758018641715,-483.88677016,0.00021917,2]
[385756219,1758018641724,-480.0,0.00021917,2]
[385756220,1758018641733,-480.0,0.00021917,2]
[385756221,1758018641742,-480.0,0.00021917,2]
[385756222,1758018641752,-480.0,0.00021917,2]
[385756223,1758018641765,-462.23652611,0.00021917,2]
[385756224,1758018641775,-480.0,0.00021917,2]
[385756225,1758018641785,-485.61859037,0.00021917,2]
[385756226,1758018641795,-480.0,0.00021917,2]
[385756227,1758018641805,-480.0,0.00021917,2]
[385756228,1758018641815,-480.0,0.00021917,2]
[385756229,1758018641824,-490.10259151,0.00021917,2]
[385756230,1758018641833,-480.0,0.00021917,2]
[385756231,1758018641845,-480.0,0.00021917,2]
[385756232,1758018641854,-480.0,0.00021917,2]
[385756233,1758018641864,-480.48230013,0.00021917,2]
[385756234,1758018641874,-481.89287329,0.00021917,2]
[385756235,1758018641883,-480.0,0.00021917,2]
[385756236,1758018641893,-500.0,0.00021917,2]
[385756237,1758018641902,-482.98737569,0.00021917,2]
[385756238,1758018641911,-480.0,0.00021917,2]
[385756239,1758018641920,-482.42476616,0.00021917,2]
[385756240,1758018641930,-482.87527602,0.00021917,2]
[385756241,1758018641940,-480.0,0.00021917,2]
[385756242,1758018641949,-480.0,0.00021917,2]
[385756243,1758018641958,-480.0,0.00021917,2]
[385756244,1758018641967,-486.38628224,0.00021917,2]
[385756245,1758018641976,-462.99680815,0.00021917,2]
[385756246,1758018641985,-480.0,0.00021917,2]
[385756247,1758018641994,-480.0,0.00021917,2]
[385756248,1758018642003,-480.0,0.00021917,2]
[385756249,1758018642013,-462.19500077,0.00021917,2]
[385756250,1758018642022,-486.38709902,0.00021917,2]
[385756251,1758018642031,-480.0,0.00021917,2]
[385756252,1758018642041,-486.45,0.00021917,2]
[385756253,1758018642051,-480.0,0.00021917,2]
[385756254,1758018642060,-480.0,0.00021917,2]
[385756255,1758018642070,-480.0,0.00021917,2]
[385756256,1758018642079,-480.0,0.00021917,2]
[385756257,1758018642089,-480.0,0.00021917,2]
[385756258,1758018642098,-480.0,0.00021917,2]
[385756259,1758018642107,-480.0,0.00021917,2]
[385756260,1758018642116,-480.0,0.00021917,2]
[385756261,1758018642125,-480.0,0.00021917,2]
[385756262,1758018642134,-480.0,0.00021917,2]
[385756263,1758018642143,-480.0,0.00021917,2]
[385756264,1758018642152,-462.99820776,0.00021917,2]
[385756265,1758018642162,-480.0,0.00021917,2]
[385756266,1758018642171,-569.43925677,0.00021917,2]
[385756267,1758018642181,-158.29419717,0.00021917,2]
[385756268,1758018642190,-480.0,0.00021917,2]
[385756269,1758018642279,-546.12934323,0.00021917,2]
[385756270,1758018642289,-480.0,0.00021917,2]
[385756271,1758018642299,-481.449795,0.00021917,2]
[385756272,1758018642309,-480.0,0.00021917,2]
[385756273,1758018642318,-480.0,0.00021917,2]
[385756274,1758018642328,-480.0,0.00021917,2]
[385756275,1758018642337,-480.0,0.00021917,2]
[385756276,1758018642349,-385.01656162,0.00021917,2]
[385756277,1758018642358,-480.0,0.00021917,2]
[385756278,1758018642367,-480.0,0.00021917,2]
[385756279,1758018642376,-480.0,0.00021917,2]
[385756280,1758018642386,-484.11386624,0.00021917,2]
[385756281,1758018642396,-480.0,0.00021917,2]
[385756282,1758018642405,-486.12366353,0.00021917,2]
[385756283,1758018642414,-480.0,0.00021917,2]
[385756284,1758018642424,-480.0,0.00021917,2]
[385756285,1758018642433,-463.00077379,0.00021917,2]
[385756286,1758018642443,-480.0,0.00021917,2]
[385756287,1758018642452,-480.0,0.00021917,2]
[385756288,1758018642462,-462.64317986,0.00021917,2]
[385756289,1758018642471,-480.0,0.00021917,2]
[385756290,1758018642481,-480.0,0.00021917,2]
[385756291,1758018642491,-483.35898547,0.00021917,2]
[385756292,1758018642500,-482.4963644,0.00021917,2]